[Event "8th Montevideo Open 2025"]
[Site "Montevideo"]
[Date "2025.02.06"]
[Round "6.5"]
[White "Larrea, Manuel"]
[Black "Dominguez, Facundo"]
[Result "1-0"]
[Annotator "TA"]
[ECO "B45"]
[WhiteElo "2265"]
[BlackElo "2159"]
[PlyCount "99"]
[EventDate "2025.02.01"]
[EventType "swiss"]
[EventCountry "URU"]
[SourceTitle "playchess.com"]
[Source "ChessBase"]
[SourceQuality "1"]
[TimeControl "5400+30"]

{[%evp 27,99,0,0,0,0,0,28,0,0,0,59,73,101,0,0,-79,-56,-46,0,0,0,0,0,0,0,0,131,129,123,124,121,122,1560,528,1450,518,493,452,437,387,395,359,344,0,368,318,536,414,418,401,406,369,438,427,404,365,366,384,370,348,359,345,361,337,393,386,393,393,393,393,393,393,366,342]} 1. e4 {[%emt 0:00:04]} c5 {[%emt 0:03:33]} 2. Nf3 {[%emt 0:00:32]} e6 {[%emt 0:00:18]} 3. d4 {[%emt 0:00:26]} cxd4 {[%emt 0:00:07]} 4. Nxd4 {[%emt 0:00:05]} Nf6 {[%emt 0:00:08]} 5. Nc3 {[%emt 0:00:17][%cal Bb1c3,Bc3e4,Be4f2,Bf2d3][%mdl 32]} Nc6 {[%emt 0:00:06]} 6. Nxc6 {[%emt 0:01:24]} bxc6 {[%emt 0:00:03]} 7. e5 {[%emt 0:00:09]} Nd5 {[%emt 0:00:04]} 8. Ne4 {[%emt 0:00:12]} Qc7 {[%emt 0:00:05]} 9. f4 {[%emt 0:00:16]} Qb6 {[%emt 0:00:35]} 10. c4 {[%emt 0:00:40]} Bb4+ {[%emt 0:03:30]} 11. Ke2 {[%emt 0:00:04]} Ba6 {[%emt 0:03:42]} 12. Kf3 {[%emt 0:01:42]} f5 {[%emt 0:01:02]} 13. Nf2 {[%emt 0:16:49]} Ne7 {[%emt 0:07:33]} 14. Be3 {[%emt 0:06:01]} Bc5 $1 {[%emt 0:01:42]} 15. Bxc5 {[%emt 0:04:29] B45: Sicilian Four Knights.} Qxc5 {[%emt 0:00:02]} 16. Qd6 {[%emt 0:00:48]} Qb6 {[%emt 0:01:41] A sharp opening} 17. Rd1 {[%emt 0:09:05] White has an edge.} Qxb2 {[%emt 0:02:33]} 18. Nd3 {[%emt 0:16:47] White sacrificed a pawn} Qc3 {[%emt 0:10:01]} (18... Qxa2 $11 19. Nc5 Bxc4 20. Bxc4 Qxc4) 19. Rc1 $14 {[%emt 0:02:26]} Qd2 $146 {[%emt 0:00:52][%cal Og7g5] Counterplay White} (19... Qa5 20. Nc5 Kf7 21. g4 fxg4+ 22. Kxg4 Qa3 23. Bd3 Rhd8 24. Nxe6 Qb2 25. Ng5+ Ke8 26. Rc2 Qb6 27. c5 Qa5 28. Bxa6 Qxa6 29. f5 Qa4+ 30. Kg3 Nxf5+ {0-1 Silva,K (2199)-Zemlyanskii,I (2257) Titled Tuesday intern op 30th Aug Early blitz 2022 (1)}) 20. Qa3 {[%emt 0:10:29]} ({White has to play} 20. Be2 $16) 20... g5 $1 $11 {[%emt 0:09:17]} 21. Be2 {[%emt 0:10:04] [#]} (21. Qxa6 $2 g4+ (21... Ng6 22. Re1 $17) 22. Kg3 Qe3+ 23. Kh4 Ng6+ 24. Kh5 (24. Kg5 $2 Nxf4 25. Kh4 Rg8 $19) 24... Nxf4+ 25. Nxf4 Qxf4 $19 (25... Qxc1 26. g3 $14)) (21. fxg5 $1 $11 c5 22. Qxa6 (22. Nxc5 Ng6 $11)) 21... gxf4 $1 {[%emt 0:05:41]} 22. Nxf4 {[%emt 0:00:48]} Ng6 {[%emt 0:01:10]} (22... Qd4 $1 $15 {feels stronger.} 23. Qe3 (23. Qxa6 $2 Qe4+ 24. Kf2 Qxf4+ 25. Bf3 Qd2+ 26. Be2 Qd4+ 27. Ke1 Qe3 $19) 23... c5) 23. Nxg6 {[%emt 0:02:27]} hxg6 {[%emt 0:00:03]} 24. Rcd1 {[%emt 0:11:55] The board is on fire.} (24. Qxa6 $2 Rh4 (24... g5 25. Kf2 $19) 25. g3 Re4 $19) 24... Qg5 {[%emt 0:00:06][%cal Oa6c4] and ...Bxc4! should not be overlooked} 25. Qxa6 {[%emt 0:00:47] [#]} Rh4 $1 {[%emt 0:01:58][%csl Gh4][%cal Rg5f4]} 26. Kf2 {[%emt 0:00:21]} Qf4+ {[%emt 0:04:30]} (26... Re4 $11 27. Rhe1 (27. Qa3 $2 Rxe2+ 28. Kxe2 Qxg2+ 29. Ke1 Qxh1+ 30. Kd2 Qxh2+ 31. Kc1 Qf4+ 32. Rd2 Qxc4+ 33. Rc2 Qf4+ 34. Kb2 Rb8+ 35. Ka1 Qxe5+ 36. Qc3 Qxc3+ 37. Rxc3 g5 $19) 27... Qe3+ 28. Kf1 Rf4+ 29. Bf3 Rxf3+ 30. gxf3 Qxf3+ 31. Kg1 Qg4+ 32. Kf2 Qf4+ 33. Kg1 Qg4+) 27. Bf3 $16 {[%emt 0:01:32] Black is now going downhill.} Rb8 {[%emt 0:00:26]} 28. Qxa7 {[%emt 0:01:13]} Rb2+ {[%emt 0:10:56]} 29. Kg1 {[%emt 0:00:05]} Qxc4 $2 {[%emt 0:01:52][%mdl 8192]} (29... Rd2 $16) 30. Qxd7+ $18 {[%emt 0:01:47]} Kf8 {[%emt 0:00:04][%cal Be8f8,Bf8g7,Bg7h6,Bh6g5][%mdl 32] ( -> ...Qc5+)} 31. Qd6+ {[%emt 0:01:29]} (31. Bxc6 Qc5+ (31... Qxa2 32. Qd8+ Kg7 33. Rd7+ Kh6 34. Qxh4#)) (31. Qa7 $142 {[%cal Rd1d8]} Rb7 32. Qa8+ (32. Qxb7 Qc5+ 33. Kf1 Rd4 $18) 32... Kg7 33. Qxb7+ Kh6 34. Qe7 (34. Qxc6 Qxc6 35. Bxc6 Rc4 $18) (34. Bxc6 Qc5+ 35. Kf1 Qc4+ 36. Ke1 Qc3+ 37. Ke2 Qc4+ 38. Rd3 Qxa2+ 39. Ke3 Rf4 $18)) 31... Kg7 {[%emt 0:00:46]} 32. h3 {[%emt 0:00:19] White wants to mate with Qe7+.} (32. Qxc6 Qxc6 33. Bxc6 Rxa2 $18) 32... Qf4 {[%emt 0:01:31]} 33. Qe7+ {[%emt 0:00:38]} (33. Bxc6 $2 Qe3+ 34. Kh2 Rxh3#) 33... Kh6 {[%emt 0:00:22]} 34. Qf8+ {[%emt 0:00:27]} (34. Qxe6 Qe3+ 35. Kh2 Qxf3) 34... Kg5 {[%emt 0:00:08]} 35. Qe7+ {[%emt 0:00:23]} (35. Bxc6 $2 Qe3+ 36. Kh2 Rxh3#) 35... Kh6 {[%emt 0:00:07]} 36. Qc5 {[%emt 0:00:27]} (36. Qxe6 Qe3+ 37. Kh2 Qxf3) 36... Rb5 $2 {[%emt 0:09:33]} (36... Rxa2 37. Rh2 (37. Bxc6 Re2 $18) 37... Qb4 38. Qxb4 (38. Qxc6 Ra1 $16) 38... Rxb4) 37. Qc1 {[%emt 0:00:57]} ({Worse is} 37. Qxc6 Qe3+ 38. Kh2 Qxe5+ 39. Kg1 (39. g3 Rb2+ 40. Bg2 Qe2 $11) 39... Qe3+ 40. Kh2 Qe5+ 41. Kg1 Qe3+ 42. Kh2 Qe5+ $11) 37... Rxe5 {[%emt 0:00:50]} 38. Qxf4+ {[%emt 0:00:18]} ({Resist} 38. Bxc6 Re3 39. Bf3 Re5 40. Qxf4+ Rxf4 $18) (38. Qxc6 Qg3 39. Qc1+ Kg7 $18) 38... Rxf4 {[%emt 0:00:03]} 39. Bxc6 {[%emt 0:00:21]} Rc5 {[%emt 0:00:51]} 40. Bd7 {[%emt 0:00:36]} e5 {[%emt 0:01:17]} 41. Rd2 {[%emt 0:00:12] Prevents Rc2} e4 {[%emt 0:02:29][%cal Be5e4,Be4e3][%mdl 32]} 42. Kh2 {[%emt 0:00:06]} e3 {[%emt 0:02:07]} 43. Re2 {[%emt 0:00:02]} Rd4 {[%emt 0:00:17]} 44. Be6 {[%emt 0:00:17]} f4 {[%emt 0:00:43]} 45. Rf1 {[%emt 0:00:31]} g5 {[%emt 0:05:10]} 46. Ra1 {[%emt 0:00:39] White is winning.} Kg6 {[%emt 0:00:33]} 47. a4 {[%emt 0:00:24]} Kf6 {[%emt 0:00:10]} 48. Bg4 {[%emt 0:00:13] and a5 would now be decisive} Ra5 {[%emt 0:00:18]} 49. Rea2 {[%emt 0:00:14]} Ke5 {[%emt 0:00:11]} 50. Kg1 {[%emt 0:00:15] Weighted Error Value: White=0.62/Black=0.35  Loses game:     	---       	Black=2      Mistake:       	White=2     	Black=4      Inaccurate:     	White=1     	Black=3      OK:         	White=14    	Black=7      Best:        	White=5     	Black=3      Strong:       	---       	Black=2} 1-0

[Event "8th Montevideo Open 2025"]
[Site "Montevideo"]
[Date "2025.02.06"]
[Round "6.6"]
[White "De Lima, Adriano Gaspar"]
[Black "De Dovitiis, Alejo"]
[Result "1-0"]
[Annotator "TA"]
[ECO "E15"]
[WhiteElo "2073"]
[BlackElo "2225"]
[PlyCount "123"]
[EventDate "2025.02.01"]
[EventType "swiss"]
[EventCountry "URU"]
[SourceTitle "playchess.com"]
[Source "ChessBase"]
[SourceQuality "1"]
[TimeControl "5400+30"]

{[%evp 18,123,8,10,12,8,24,-7,-9,-14,-8,-11,22,25,29,10,34,27,35,36,46,22,25,20,28,0,26,-13,0,0,0,0,0,0,0,0,10,10,71,50,45,18,34,22,72,82,116,101,129,116,104,102,172,175,174,147,277,236,1543,1543,1543,1391,1575,493,1293,1212,1124,920,1638,1674,1679,1573,2375,3829,4806,5233,12807,12808,2885,12695,12717,5085,10410,10410,12222,1604,6213,6654,12839,12838,12688,11220,6605,6621,4798,4798,29956,29957,6056,2593,29968,29970,29975,29976,29976,29977,29975,11958]} 1. d4 {[%emt 1:31:00]} Nf6 {[%emt 0:12:44]} 2. c4 {[%emt 0:00:00]} e6 {[%emt 0:00:10]} 3. Nf3 {[%emt 0:00:00]} b6 {[%emt 0:00:24]} 4. g3 {[%emt 0:00:00]} Ba6 {[%emt 0:00:12]} 5. Qc2 {[%emt 0:00:00]} Bb7 {[%emt 0:00:36]} 6. Bg2 {[%emt 0:00:00]} c5 {[%emt 0:01:10]} 7. O-O {[%emt 0:00:00]} Be4 {[%emt 0:09:07]} 8. Qa4 {[%emt 0:00:00]} cxd4 {[%emt 0:06:04]} 9. Nxd4 {[%emt 0:00:00]} Bxg2 {[%emt 0:00:06]} 10. Kxg2 {[%emt 0:04:30]} Bc5 {[%emt 0:00:08] E15: Queen's Indian: 4 g3 sidelines, 4 g3 Ba6 and 4 g3 Bb7 early deviations.} 11. Nf3 {[%emt 0:00:00]} O-O {[%emt 0:00:27]} 12. b4 $146 {[%emt 0:00:00]} (12. Nc3 Qe7 13. Bg5 h6 14. Bxf6 Qxf6 15. Rad1 Rd8 16. Rd2 Nc6 17. Rfd1 Qe7 18. a3 a5 19. Ne4 {1-0 Yoo,C (2455)-Olsen,F (2379) Titled Tuesday intern op 26th Jan blitz 2021 (2)}) 12... Be7 {[%emt 0:00:37] Not much happening anymore. The position is equal.} 13. Bb2 {[%emt 0:00:00]} Nc6 {[%emt 0:07:22]} 14. a3 {[%emt 0:00:00]} a5 {[%emt 0:01:16]} 15. b5 {[%emt 0:00:00]} Nb8 {[%emt 0:00:08][%cal Bc6b8,Bb8d7,Bd7c5][%mdl 32]} 16. Rd1 {[%emt 0:00:00]} Qc7 {[%emt 0:57:59]} 17. Nbd2 {[%emt 0:03:30]} Qb7 {[%emt 0:00:00]} 18. Rac1 {[%emt 0:00:30][%cal Oc4c5]} d6 {[%emt 0:00:00]} 19. Kg1 {[%emt 0:00:00]} e5 {[%emt 0:00:00]} 20. Qc2 {[%emt 0:00:00]} Nbd7 {[%emt 0:00:00]} 21. Ng5 {[%emt 0:00:00]} Nc5 {[%emt 0:00:00]} 22. f3 {[%emt 0:00:00]} h6 {[%emt 0:00:00]} 23. Nge4 {[%emt 0:00:00]} Nfxe4 {[%emt 0:00:00]} 24. Nxe4 {[%emt 0:00:00]} Nxe4 {[%emt 0:00:00]} 25. Qxe4 {[%emt 0:00:00]} Qxe4 {[%emt 0:00:00]} 26. fxe4 {[%emt 0:00:00]} Bg5 {[%emt 0:00:00]} 27. Rc3 {[%emt 0:00:00] Dodges Be3+} f5 {[%emt 0:00:00]} (27... Rfd8 $11 {keeps the balance.}) 28. exf5 {[%emt 0:00:00]} Rxf5 {[%emt 0:00:00]} 29. Rxd6 {[%emt 0:00:00][%cal Og1g2] [#]} Be7 {[%emt 0:00:00]} 30. e4 {[%emt 0:00:00]} (30. Rxb6 $2 Bc5+ 31. Kg2 Rf2+ (31... Bxb6 $2 32. c5 $19) 32. Kh3 Bxb6 $19) 30... Rf7 {[%emt 0:00:00]} (30... Rff8 $11 31. Rd2 (31. Rxb6 $2 Bc5+ 32. Kg2 Rf2+ 33. Kh3 Bxb6 $19) 31... Rad8) 31. Rd2 $16 {[%emt 0:00:00] Black is now going downhill.} (31. Rxb6 $2 Bc5+ 32. Kg2 Rf2+ (32... Bxb6 $2 33. c5 $19) 33. Kh3 Bxb6 $19) 31... Raf8 {[%emt 0:00:00] ...Bc5+ would now be deadly.} 32. Rcc2 {[%emt 0:00:00]} g5 {[%emt 0:00:00]} 33. Bxe5 {[%emt 0:00:00]} Bxa3 {[%emt 0:00:18]} 34. Bd6 {[%emt 0:00:00] White is more active.} Bxd6 {[%emt 0:03:49]} (34... Bb4 $16) 35. Rxd6 {[%emt 0:00:00][%mdl 4096] Endgame KRR-KRR. White is a pawn up.} Rf6 {[%emt 0:00:05] [#]} 36. Rcd2 {[%emt 0:00:00]} Kg7 {[%emt 0:00:14]} (36... Rxd6 $16 {keeps fighting.} 37. Rxd6 Kf7) 37. e5 $18 {[%emt 0:00:42][%cal Be4e5,Be5d6,Bd6d7][%mdl 32]} Rxd6 {[%emt 0:00:43]} (37... Rf5 38. Rd7+ (38. Rxb6 Rxe5 39. Rd7+ Rf7 $18) 38... Kg6 39. R7d6+ Kg7) 38. exd6 {[%emt 0:03:02] KR-KR. White is a pawn up.} ({Not} 38. Rxd6 a4 $16) 38... Rd8 {[%emt 0:02:51]} 39. d7 {[%emt 0:00:05]} g4 {[%emt 0:01:32]} 40. Rd6 {[%emt 0:00:54]} (40. c5 $142 {Threatening mate with c6.} bxc5 41. b6) 40... h5 {[%emt 0:00:13]} (40... Kf8 $142 41. Kf2 (41. Rxb6 Rxd7 42. Rxh6 Kg7 $18) 41... Ke7 42. Rxb6 Kxd7) 41. Rxb6 {[%emt 0:01:51]} Rxd7 {[%emt 0:00:05]} 42. c5 {[%emt 0:00:18][%cal Bc4c5,Bc5c6,Bc6c7][%mdl 32]} a4 {[%emt 0:00:55]} 43. c6 {[%emt 0:00:45]} Rd1+ {[%emt 0:01:28]} 44. Kf2 {[%emt 0:00:05] Hoping for c7.} Rc1 {[%emt 0:00:33]} 45. Ra6 {[%emt 0:01:24]} (45. Rb7+ $142 Kf6 46. c7) 45... Rc5 {[%emt 0:00:43]} 46. Rxa4 {[%emt 0:00:27]} Rxb5 {[%emt 0:00:07]} 47. Rc4 {[%emt 0:00:04]} Rb8 {[%emt 0:00:18]} 48. c7 {[%emt 0:00:05]} Rc8 {[%emt 0:00:02]} 49. Rc6 {[%emt 0:00:25]} (49. Ke3 $142 Kf7 50. Kf4) 49... Kf7 {[%emt 0:00:47]} 50. Ke3 {[%emt 0:00:12]} Ke7 {[%emt 0:00:08]} 51. Kf4 {[%emt 0:00:18]} Kd7 {[%emt 0:00:10]} 52. Rc2 {[%emt 0:00:10]} Rf8+ {[%emt 0:00:35]} 53. Kg5 {[%emt 0:00:06]} Kc8 {[%emt 0:00:07]} 54. Kxh5 {[%emt 0:01:40]} Rg8 {[%emt 0:00:06]} 55. Rc4 {[%emt 0:01:26]} Rg7 {[%emt 0:01:24]} 56. Rxg4 {[%emt 0:02:00]} Rh7+ {[%emt 0:00:56]} 57. Kg6 {[%emt 0:00:13]} Rxc7 {[%emt 0:01:19]} 58. Rd4 {[%emt 0:01:39]} (58. h4 $142 Rc6+ 59. Kh5) 58... Rc3 {[%emt 0:00:17]} 59. g4 {[%emt 0:00:21][%cal Bg3g4,Bg4g5][%mdl 32] White mates.} Rh3 {[%emt 0:00:27]} 60. Rd2 {[%emt 0:00:15]} Rh8 {[%emt 0:00:41]} 61. g5 {[%emt 0:00:29]} Rg8+ {[%emt 0:00:21]} 62. Kf6 {[%emt 0:03:04] Weighted Error Value: White=0.32/Black=1.00  Mistake:       	---       	Black=5      Inaccurate:     	White=4     	Black=3      OK:         	White=7     	Black=9      Best:        	White=3     	Black=1} (62. Kh6 $142 Rh8+ 63. Kg7 Rh4 64. g6 Kb7 65. Rf2 Rd4 66. h4 Rxh4 67. Kf7) 1-0

[Event "8th Montevideo Open 2025"]
[Site "Montevideo"]
[Date "2025.02.06"]
[Round "6.7"]
[White "Curi, Gabriel"]
[Black "Shoker, Samy"]
[Result "0-1"]
[Annotator "TA"]
[ECO "B06"]
[WhiteElo "2115"]
[BlackElo "2446"]
[PlyCount "110"]
[EventDate "2025.02.01"]
[EventType "swiss"]
[EventCountry "URU"]
[SourceTitle "playchess.com"]
[Source "ChessBase"]
[SourceQuality "1"]
[TimeControl "5400+30"]

{[%evp 9,110,31,43,43,40,22,62,8,10,0,0,0,0,-1,50,-8,2,0,16,0,18,-33,-29,-51,-58,-44,-45,-128,-126,-103,-36,-35,-30,-161,-154,-143,-23,-30,0,-45,-43,-42,-54,-52,-30,-27,0,0,69,59,54,50,44,43,89,89,91,90,87,73,94,112,116,39,41,0,13,0,29,0,0,0,0,0,14,0,0,-9,0,0,0,0,0,0,0,0,0,-828,0,0,0,-838,-30,-54,-54,-48,-40,-103,-102,-116,-101,-530,-528]} 1. e4 {[%emt 0:00:04]} g6 {[%emt 0:00:08]} 2. d4 {[%emt 0:00:07]} Bg7 {[%emt 0:00:03]} 3. Nc3 {[%emt 0:00:06]} d6 {[%emt 0:00:03]} 4. g3 {[%emt 0:00:10]} Nc6 {[%emt 0:01:37]} 5. Nge2 {[%emt 0:01:24]} Bg4 {[%emt 0:00:35][%cal Oc6d4]} 6. Qd3 {[%emt 0:00:08] B06: Modern Defence.} a6 {[%emt 0:02:46]} 7. a3 {[%emt 0:04:28]} f5 $146 {[%emt 0:03:37]} (7... e5 8. d5 Nce7 9. f3 Bd7 10. g4 h5 11. g5 h4 12. Be3 Nc8 13. a4 Nge7 {0-1 Koubova,A (2117)-Hryshchenko,K (2037) London Menchik Memorial 1st 2022 (3)}) 8. Bg2 {[%emt 0:18:48]} (8. f3 $14 fxe4 9. fxe4) 8... fxe4 $11 {[%emt 0:01:52]} 9. Bxe4 {[%emt 0:02:05]} Nf6 {[%emt 0:00:13]} 10. Bg2 {[%emt 0:00:07]} Bf5 {[%emt 0:10:03]} 11. Qd1 {[%emt 0:01:03]} Qd7 {[%emt 0:00:26]} (11... e5 $11) 12. O-O {[%emt 0:03:54]} (12. d5 $1 $14 Ne5 13. h3) 12... O-O {[%emt 0:05:44]} 13. d5 {[%emt 0:11:32]} Nd8 {[%emt 0:02:56]} 14. Be3 {[%emt 0:01:36]} c5 {[%emt 0:01:53]} 15. dxc6 {[%emt 0:10:48]} (15. a4 $11) 15... bxc6 $15 {[%emt 0:00:51]} 16. Nd4 {[%emt 0:00:45]} Bh3 {[%emt 0:00:48]} 17. f4 {[%emt 0:05:48]} Rb8 {[%emt 0:03:59]} 18. b4 {[%emt 0:05:28]} (18. Rb1 $15) 18... Bxg2 $1 $17 {[%emt 0:13:09]} 19. Kxg2 {[%emt 0:00:15]} Nf7 {[%emt 0:01:16]} (19... Ng4 $17 20. Qd2 c5) 20. Qd3 $15 {[%emt 0:08:45][%cal Od4f3]} Ng4 {[%emt 0:06:22] White must now prevent ...e5.} 21. Rad1 {[%emt 0:10:03]} (21. h3 $11 {and White stays safe.} Nxe3+ 22. Qxe3) 21... e5 $19 {[%emt 0:02:49]} 22. Nde2 {[%emt 0:01:51]} Qb7 {[%emt 0:06:22]} ({Black should play} 22... Nxe3+ $17 23. Qxe3 a5 (23... d5 24. Na4 $17) 24. bxa5 d5) 23. Bg1 $11 {[%emt 0:04:54]} Nf6 {[%emt 0:13:03]} 24. h3 {[%emt 0:02:05]} (24. fxe5 $5 c5+ (24... dxe5 25. Bc5 $14) (24... Nxe5 25. Qxd6 c5+ 26. Nd5 $11) 25. Qf3 Qxf3+ (25... Nxe5 26. Qxb7 Rxb7 27. Rxd6 $14) 26. Rxf3 Nxe5 (26... dxe5 27. Bxc5 Rfe8 28. Rdf1 $16) 27. Rf4 $11) 24... c5+ {[%emt 0:03:12]} (24... exf4 25. Nxf4 Rfe8 26. Kh2 d5) 25. Kh2 {[%emt 0:01:16]} cxb4 {[%emt 0:01:48]} 26. axb4 {[%emt 0:00:08]} exf4 {[%emt 0:02:51]} 27. gxf4 {[%emt 0:00:08]} Rbc8 {[%emt 0:04:58]} (27... Qxb4 28. Rb1 Qa5 29. Ra1 Qc7) 28. Bd4 {[%emt 0:00:37]} Rfe8 {[%emt 0:01:57]} (28... Qxb4 $2 29. Bxf6 Bxf6 30. Nd5 $18) (28... Nd8 $11) 29. Bxf6 $14 {[%emt 0:00:45]} Bxf6 {[%emt 0:00:03]} 30. Nd5 {[%emt 0:00:11]} Bg7 {[%emt 0:00:22]} 31. c4 {[%emt 0:00:21] Strong Square White (d5) Inhibits Qb5.} Nh6 {[%emt 0:05:55]} (31... Kh8 $14) 32. Ng3 $16 {[%emt 0:00:12] Excellent horsemanship.} Qc6 {[%emt 0:01:55]} 33. Rc1 {[%emt 0:00:29]} Kh8 {[%emt 0:00:50]} 34. Rfe1 {[%emt 0:01:00] and Ne7 would now be decisive} Rxe1 {[%emt 0:00:46]} 35. Rxe1 {[%emt 0:00:02]} Ng8 {[%emt 0:00:05] [#]} (35... Qxc4 $2 36. Re8+ Ng8 37. Qxc4 Rxc4 38. Ne7 $18) 36. Re4 {[%emt 0:00:59]} (36. Ne4 $1 $16) 36... Rf8 $14 {[%emt 0:01:23]} 37. Qe2 {[%emt 0:02:00]} Qa4 {[%emt 0:00:39]} 38. Qd3 {[%emt 0:00:35]} Qa1 {[%emt 0:00:20]} 39. Kg2 {[%emt 0:01:01]} (39. Qd2 {simplifies} Qa4 40. Nf1 g5 41. Ng3) 39... a5 {[%emt 0:01:12]} 40. bxa5 {[%emt 0:00:33]} Qxa5 {[%emt 0:00:01]} (40... Ra8 {keeps more tension.} 41. h4 Rxa5 42. Re8 Ra2+) 41. Re2 {[%emt 0:00:15]} Qa8 {[%emt 0:00:46]} 42. Re4 {[%emt 0:00:18]} Qa1 {[%emt 0:00:24]} 43. Qf1 {[%emt 0:01:08]} Qa4 {[%emt 0:00:35]} 44. Qd3 {[%emt 0:00:15]} Rb8 {[%emt 0:00:18]} 45. Re2 {[%emt 0:00:08]} Qa1 {[%emt 0:00:36]} 46. Rd2 {[%emt 0:04:04]} Rb1 {[%emt 0:00:22]} 47. Kh2 {[%emt 0:00:13]} Rc1 {[%emt 0:00:35]} 48. Rc2 $2 {[%emt 0:00:41][%mdl 8192]} (48. Re2 $11) 48... Rb1 $2 {[%emt 0:00:45]} (48... Qd4 $19 49. Qxd4 Rxc2+ 50. Qf2 Rxf2+ 51. Kh1 Nf6 52. Nxf6 Bxf6) 49. Rd2 $11 {[%emt 0:00:09]} Rc1 $2 $40 {[%emt 0:00:21][%mdl 8320] White needs to defend precisely.} (49... Re1 $11) 50. Rc2 $19 {[%emt 0:00:04]} Qb1 $2 {[%emt 0:00:31]} (50... Qd4 $19 {( -> ...Qg1#)} 51. Qxd4 Rxc2+ 52. Qf2 Rxf2+ 53. Kh1 Nf6) 51. Rd2 {[%emt 0:01:32]} Qxd3 {[%emt 0:00:32]} 52. Rxd3 {[%emt 0:00:02]} Rxc4 {[%emt 0:00:13][%cal Bc1c4,Bc4f4,Bf4f2][%mdl 32]} 53. Ne3 {[%emt 0:00:16]} (53. Kg2 $15) 53... Rxf4 $17 {[%emt 0:00:10]} 54. Rxd6 {[%emt 0:01:10]} Be5 {[%emt 0:00:27]} 55. Rd1 {[%emt 0:00:08][%mdl 8192] [#]} (55. Rd5 $17 {nothing else works.} Rf2+ 56. Ng2) 55... Rf2+ $1 {[%emt 0:02:33] Weighted Error Value: White=0.42/Black=0.31  Loses game:     	White=2     	---        Missed win:     	---       	Black=2      Mistake:       	White=7     	Black=5      Inaccurate:     	White=3     	Black=4      OK:         	White=14    	Black=18     Best:        	White=5     	Black=1      Strong:       	---       	Black=1} 0-1